fUST/lending_fUST_20250810
["ID","MTS","AMOUNT","RATE_DAILY","PERIOD"]
[378247373,1754796360065,5000.0,0.0002109,2]
[378247374,1754796376445,5000.0,0.0002109,2]
[378247376,1754796393132,5000.0,0.0002109,2]
[378247377,1754796408582,5000.0,0.0002109,2]
[378247378,1754796424134,5000.0,0.0002109,2]
[378247379,1754796435267,948.72662866,0.0003153,120]
[378247380,1754796439589,258.744813,0.00020506,2]
[378247381,1754796439928,272.3338757,0.00021003,2]
[378247382,1754796440522,5000.0,0.0002109,2]
[378247385,1754796457670,5000.0,0.0002109,2]
[378247391,1754796473065,5000.0,0.0002109,2]
[378247393,1754796484141,20108.5412611,0.00020762,2]
[378247394,1754796488071,2974.00519399,0.000199,2]
[378247395,1754796490417,5000.0,0.0002109,2]
[378247399,1754796506706,5000.0,0.0002109,2]
[378247402,1754796522215,5000.0,0.0002109,2]
[378247406,1754796539999,5000.0,0.0002109,2]
[378247410,1754796555654,5000.0,0.0002109,2]
[378247415,1754796572173,5000.0,0.0002109,2]
[378247420,1754796588348,5000.0,0.0002109,2]
[378247423,1754796606120,5000.0,0.0002109,2]
[378247424,1754796606278,27551.52508,0.00020733,2]
[378247426,1754796610376,1000.0,0.00020727,2]
[378247428,1754796619158,157.199361,0.00026792,30]
[378247429,1754796621618,5000.0,0.0002109,2]
[378247527,1754796637411,5000.0,0.0002109,2]
[378247553,1754796640104,-375.177789,0.0002114,2]
[378247554,1754796640115,-157.18861767,0.00021164,2]
[378247555,1754796640125,-166.28750668,0.00021554,2]
[378247556,1754796640135,-166.28750664,0.00021605,2]
[378247557,1754796640145,-300.0,0.00021653,2]
[378247558,1754796640155,-293.98045132,0.00021654,2]
[378247559,1754796640164,-460.0,0.00021654,2]
[378247560,1754796640174,-460.0,0.00021654,2]
[378247561,1754796640184,-460.0,0.00021654,2]
[378247562,1754796640194,-460.0,0.00021654,2]
[378247563,1754796640203,-460.0,0.00021654,2]
[378247564,1754796640213,-1547.78,0.00021654,2]
[378247565,1754796640222,-508.37722403,0.00021654,2]
[378247566,1754796640231,-200.25294954,0.00021654,2]
[378247567,1754796640241,-460.0,0.00021654,2]
[378247568,1754796640251,-481.99738509,0.00021654,2]
[378247569,1754796640261,-460.0,0.00021654,2]
[378247570,1754796640275,-460.0,0.00021654,2]
[378247571,1754796640288,-497.02204497,0.00021654,2]
[378247572,1754796640298,-460.0,0.00021654,2]
[378247573,1754796640307,-2974.00519392,0.00021655,2]
[378247574,1754796640317,-166.28750664,0.00021656,2]
[378247575,1754796640326,-166.28750664,0.00021707,2]
[378247576,1754796640335,-166.28750664,0.00021758,2]
[378247577,1754796640344,-1323.27577148,0.00021758,2]
[378247578,1754796640353,-265.28069522,0.00021769,2]
[378247579,1754796640363,-460.0,0.00021794,2]
[378247580,1754796640372,-460.0,0.00021794,2]
[378247581,1754796640382,-506.08,0.00021794,2]
[378247582,1754796640395,-523.8642901,0.00021794,2]
[378247583,1754796640405,-460.0,0.00021794,2]
[378247584,1754796640415,-460.0,0.00021794,2]
[378247585,1754796640425,-460.0,0.00021794,2]
[378247586,1754796640434,-460.0,0.00021794,2]
[378247587,1754796640443,-460.0,0.00021794,2]
[378247588,1754796640452,-460.0,0.00021794,2]
[378247589,1754796640462,-151.0,0.00021854,2]
[378247590,1754796640472,-300.0,0.00021854,2]
[378247591,1754796640481,-151.0,0.00021854,2]
[378247592,1754796640491,-151.0,0.00021854,2]
[378247593,1754796640500,-300.0,0.00021854,2]
[378247594,1754796640510,-151.0,0.00021854,2]
[378247595,1754796640520,-151.0,0.00021854,2]
[378247596,1754796640533,-300.0,0.00021854,2]
[378247597,1754796640543,-151.0,0.00021854,2]
[378247598,1754796640554,-151.0,0.00021854,2]
[378247599,1754796640564,-300.0,0.00021854,2]
[378247600,1754796640574,-151.0,0.00021854,2]
[378247601,1754796640584,-151.0,0.00021854,2]
[378247602,1754796640594,-300.0,0.00021854,2]
[378247603,1754796640604,-151.0,0.00021854,2]
[378247604,1754796640614,-250.0,0.00021854,2]
[378247605,1754796640624,-151.0,0.00021854,2]
[378247606,1754796640634,-300.0,0.00021854,2]
[378247607,1754796640644,-151.0,0.00021854,2]
[378247608,1754796640653,-250.0,0.00021854,2]
[378247609,1754796640663,-300.0,0.00021854,2]
[378247610,1754796640673,-151.0,0.00021854,2]
[378247611,1754796640683,-250.0,0.00021854,2]
[378247612,1754796640693,-151.0,0.00021854,2]
[378247613,1754796640703,-300.0,0.00021854,2]
[378247614,1754796640712,-151.0,0.00021854,2]
[378247615,1754796640722,-250.0,0.00021854,2]
[378247616,1754796640731,-151.0,0.00021854,2]
[378247617,1754796640741,-300.0,0.00021854,2]
[378247618,1754796640751,-151.0,0.00021854,2]
[378247619,1754796640761,-344.86146261,0.00021854,2]
[378247620,1754796640770,-300.0,0.00021854,2]
[378247621,1754796640784,-151.0,0.00021854,2]
[378247622,1754796640793,-151.0,0.00021854,2]
[378247623,1754796640804,-310.96068514,0.00021854,2]
[378247624,1754796640814,-151.0,0.00021854,2]
[378247625,1754796640824,-151.0,0.00021854,2]
[378247626,1754796640834,-151.0,0.00021854,2]
[378247627,1754796640845,-185.09398253,0.00021854,2]
[378247628,1754796640855,-500.0,0.00021854,2]
[378247629,1754796640864,-500.0,0.00021854,2]
[378247630,1754796640874,-500.0,0.00021854,2]
[378247631,1754796640883,-151.0,0.00021854,2]
[378247632,1754796640892,-500.0,0.00021854,2]
[378247633,1754796640902,-500.0,0.00021854,2]
[378247634,1754796640911,-500.0,0.00021854,2]
[378247635,1754796640921,-151.0,0.00021854,2]
[378247636,1754796640930,-500.0,0.00021854,2]
[378247637,1754796640939,-151.0,0.00021854,2]
[378247638,1754796640949,-500.0,0.00021854,2]
[378247639,1754796640959,-151.0,0.00021854,2]
[378247640,1754796640968,-151.0,0.00021854,2]
[378247641,1754796640978,-500.0,0.00021854,2]
[378247642,1754796640987,-500.0,0.00021854,2]
[378247643,1754796640997,-151.0,0.00021854,2]
[378247644,1754796641007,-500.0,0.00021854,2]
[378247645,1754796641016,-500.0,0.00021854,2]
[378247646,1754796641036,-151.0,0.00021854,2]
[378247647,1754796641046,-151.0,0.00021854,2]
[378247648,1754796641055,-500.0,0.00021854,2]
[378247649,1754796641065,-151.0,0.00021854,2]
[378247650,1754796641270,-151.0,0.00021854,2]
[378247651,1754796641283,-500.0,0.00021854,2]
[378247652,1754796641292,-151.0,0.00021854,2]
[378247653,1754796641302,-460.0,0.00021857,2]
[378247654,1754796641311,-473.68802578,0.00021857,2]
[378247655,1754796641321,-244.09137297,0.00021857,2]
[378247656,1754796641330,-500.0,0.00021857,2]
[378247657,1754796641339,-513.88999083,0.00021857,2]
[378247658,1754796641349,-500.0,0.00021857,2]
[378247659,1754796641359,-500.0,0.00021857,2]
[378247660,1754796641369,-500.0,0.00021857,2]
[378247661,1754796641378,-500.0,0.00021857,2]
[378247662,1754796641388,-500.0,0.00021857,2]
[378247663,1754796641397,-500.0,0.00021857,2]
[378247664,1754796641407,-157.40627776,0.00021857,2]
[378247665,1754796641416,-500.0,0.00021857,2]
[378247666,1754796641425,-377.50344529,0.00021857,2]
[378247667,1754796641435,-511.12812893,0.00021858,2]
[378247668,1754796641444,-505.84981176,0.00021858,2]
[378247669,1754796641454,-488.15704043,0.00021858,2]
[378247670,1754796641463,-477.52995995,0.00021858,2]
[378247671,1754796641472,-460.0,0.00021858,2]
[378247672,1754796641482,-486.75026059,0.00021858,2]
[378247673,1754796641491,-460.0,0.00021858,2]
[378247674,1754796641500,-481.05857196,0.00021858,2]
[378247675,1754796641510,-460.0,0.00021858,2]
[378247676,1754796641519,-460.0,0.00021858,2]
[378247677,1754796641531,-460.0,0.00021858,2]
[378247678,1754796641541,-460.0,0.00021858,2]
[378247679,1754796641550,-176.86398751,0.00021858,2]
[378247680,1754796641560,-482.62311217,0.00021858,2]
[378247681,1754796641569,-460.0,0.00021858,2]
[378247682,1754796641578,-460.0,0.00021858,2]
[378247683,1754796641588,-460.0,0.00021858,2]
[378247684,1754796641597,-480.11335249,0.00021858,2]
[378247685,1754796641606,-460.0,0.00021858,2]
[378247686,1754796641616,-460.0,0.00021858,2]
[378247687,1754796641625,-507.02888447,0.00021858,2]
[378247688,1754796641634,-24900.0,0.00021858,2]
[378247689,1754796641644,-509.40749413,0.00021928,2]
[378247690,1754796641653,-460.0,0.00021928,2]
[378247691,1754796641662,-309.66887379,0.00021928,2]
[378247692,1754796641671,-460.0,0.00021928,2]
[378247693,1754796641690,-460.0,0.00021928,2]
[378247694,1754796641702,-1547.78,0.00021928,2]
[378247695,1754796641712,-460.0,0.00021928,2]
[378247696,1754796641722,-527.64856538,0.00021928,2]
[378247697,1754796641732,-523.7956526,0.00021928,2]
[378247698,1754796641742,-460.0,0.00021928,2]
[378247699,1754796641752,-501.66927776,0.0002197,2]
[378247700,1754796641762,-500.0,0.0002197,2]
[378247701,1754796641772,-501.7952444,0.0002197,2]
[378247702,1754796641783,-500.0,0.0002197,2]
[378247703,1754796641793,-501.29617885,0.0002197,2]
[378247704,1754796641803,-235.28743257,0.0002197,2]
[378247705,1754796641813,-178.91486088,0.0002197,2]
[378247706,1754796641826,-601.87,0.00022,2]
[378247707,1754796641836,-167.0,0.00022,2]
[378247708,1754796641845,-200.45304209,0.00022031,2]
[378247709,1754796641855,-438.72516707,0.00022031,2]
[378247710,1754796641865,-500.0,0.00022031,2]
[378247711,1754796641875,-500.0,0.00022044,2]
[378247712,1754796641885,-500.0,0.00022044,2]
[378247713,1754796641895,-500.0,0.00022044,2]
[378247714,1754796641905,-508.72651601,0.0002206,2]
[378247715,1754796641915,-460.0,0.00022068,2]
[378247716,1754796641925,-460.0,0.00022068,2]
[378247717,1754796641935,-506.08,0.00022068,2]
[378247718,1754796641945,-460.0,0.00022068,2]
[378247719,1754796641956,-460.0,0.00022068,2]
[378247720,1754796641966,-460.0,0.00022068,2]
[378247721,1754796641976,-460.0,0.00022068,2]
[378247722,1754796641986,-460.0,0.00022068,2]
[378247723,1754796641996,-460.0,0.00022131,2]
[378247724,1754796642006,-460.0,0.00022132,2]
[378247725,1754796642015,-460.0,0.00022132,2]
[378247726,1754796642025,-460.0,0.00022132,2]
[378247727,1754796642035,-282.14869001,0.00022132,2]
[378247728,1754796642045,-460.0,0.00022132,2]
[378247729,1754796642055,-460.0,0.00022132,2]
[378247730,1754796642066,-460.0,0.00022132,2]
[378247731,1754796642075,-460.0,0.00022132,2]
[378247732,1754796642086,-460.0,0.00022132,2]
[378247733,1754796642096,-460.0,0.00022132,2]
[378247734,1754796642109,-460.0,0.00022132,2]
[378247735,1754796642118,-460.0,0.00022202,2]
[378247736,1754796642128,-460.0,0.00022202,2]
[378247737,1754796642138,-460.0,0.00022202,2]
[378247738,1754796642149,-1547.78,0.00022202,2]
[378247739,1754796642159,-460.0,0.00022202,2]
[378247740,1754796642169,-460.0,0.00022202,2]
[378247741,1754796642179,-472.4131891,0.00022222,2]
[378247742,1754796642189,-466.16525084,0.00022222,2]
[378247743,1754796642199,-460.0,0.00022222,2]
[378247744,1754796642209,-460.0,0.00022222,2]
[378247745,1754796642218,-467.3349121,0.00022222,2]
[378247746,1754796642227,-462.8568414,0.00022222,2]
[378247747,1754796642237,-191.85443385,0.00022222,2]
[378247748,1754796642246,-460.0,0.00022342,2]
[378247749,1754796642256,-460.0,0.00022342,2]
[378247750,1754796642265,-506.08,0.00022342,2]
[378247751,1754796642276,-460.0,0.00022342,2]
[378247752,1754796642292,-460.0,0.00022342,2]
[378247753,1754796642301,-460.0,0.00022342,2]
[378247754,1754796642311,-460.0,0.00022342,2]
[378247755,1754796642320,-460.0,0.00022342,2]
[378247756,1754796642329,-460.0,0.00022405,2]
[378247757,1754796642339,-161.80202445,0.00022406,2]
[378247758,1754796642348,-460.0,0.00022406,2]
[378247759,1754796642358,-460.0,0.00022406,2]
[378247760,1754796642367,-460.0,0.00022406,2]
[378247761,1754796642384,-460.0,0.00022406,2]
[378247762,1754796642393,-460.0,0.00022406,2]
[378247763,1754796642402,-460.0,0.00022406,2]
[378247764,1754796642412,-268.572851,0.00022406,7]
[378247765,1754796642421,-268.572851,0.00022406,7]
[378247766,1754796642430,-460.0,0.00022406,2]
[378247767,1754796642439,-151.0,0.00022406,7]
[378247768,1754796642449,-254.054587,0.00022406,7]
[378247769,1754796642459,-460.0,0.00022406,2]
[378247770,1754796642468,-460.0,0.00022406,2]
[378247772,1754796642477,-181.76083342,0.00022416,2]
[378247773,1754796642486,-5000.0,0.00022464,2]
[378247774,1754796642495,-296.258058,0.00022464,7]
[378247775,1754796642505,-296.258058,0.00022464,7]
[378247776,1754796642514,-460.0,0.00022476,2]
[378247777,1754796642523,-460.0,0.00022476,2]
[378247778,1754796642535,-460.0,0.00022476,2]
[378247780,1754796642544,-1547.78,0.00022476,2]
[378247781,1754796642559,-460.0,0.00022476,2]
[378247782,1754796642571,-460.0,0.00022476,2]
[378247783,1754796642580,-466.056423,0.00022496,2]
[378247784,1754796642590,-460.0,0.00022496,2]
[378247785,1754796642599,-1012.43868695,0.00022518,2]
[378247786,1754796642609,-684.56188931,0.00022518,2]
[378247787,1754796642619,-1000.0,0.00022579,2]
[378247788,1754796642636,-160.0,0.00022586,2]
[378247789,1754796642653,-1000.0,0.00022592,2]
[378247790,1754796642663,-1014.74129223,0.00022592,2]
[378247791,1754796642673,-1000.0,0.00022592,2]
[378247792,1754796642682,-460.0,0.00022616,2]
[378247793,1754796642692,-460.0,0.00022616,2]
[378247794,1754796642701,-506.08,0.00022616,2]
[378247795,1754796642712,-460.0,0.00022616,2]
[378247796,1754796642722,-460.0,0.00022616,2]
[378247797,1754796642731,-460.0,0.00022616,2]
[378247798,1754796642741,-151.0,0.00022616,7]
[378247799,1754796642750,-460.0,0.00022616,2]
[378247800,1754796642759,-460.0,0.00022616,2]
[378247801,1754796642769,-460.0,0.00022679,2]
[378247802,1754796642779,-151.0,0.0002268,7]
[378247803,1754796642788,-151.0,0.0002268,7]
[378247804,1754796642798,-460.0,0.0002268,2]
[378247805,1754796642807,-460.0,0.0002268,2]
[378247806,1754796642816,-460.0,0.0002268,2]
[378247807,1754796642825,-151.0,0.0002268,7]
[378247808,1754796642834,-666.341181,0.0002268,7]
[378247809,1754796642843,-666.341181,0.0002268,7]
[378247810,1754796642852,-460.0,0.0002268,2]
[378247811,1754796642861,-460.0,0.0002268,2]
[378247812,1754796642870,-641.036256,0.0002268,7]
[378247813,1754796642880,-641.036256,0.0002268,7]
[378247814,1754796642889,-460.0,0.0002268,2]
[378247815,1754796642899,-268.572851,0.0002268,7]
[378247816,1754796642908,-268.572851,0.0002268,7]
[378247817,1754796642917,-446.67112877,0.0002268,2]
[378247818,1754796642927,-151.0,0.0002268,7]
[378247819,1754796642936,-151.0,0.0002268,7]
[378247820,1754796642945,-460.0,0.0002268,2]
[378247821,1754796642954,-460.0,0.0002268,2]
[378247822,1754796642963,-160.0,0.00022692,2]
[378247823,1754796642973,-160.0,0.00022692,2]
[378247824,1754796642982,-160.0,0.00022692,2]
[378247825,1754796642992,-527.86640923,0.00022692,2]
[378247826,1754796643001,-160.0,0.00022692,2]
[378247828,1754796643010,-312.16666667,0.00022692,2]
[378247829,1754796643020,-160.0,0.00022692,2]
[378247830,1754796643031,-160.0,0.00022692,2]
[378247831,1754796643041,-160.0,0.00022692,2]
[378247833,1754796643050,-200.0,0.00022736,15]
[378247834,1754796643059,-300.0,0.00022736,15]
[378247835,1754796643068,-460.0,0.0002275,2]
[378247836,1754796643078,-460.0,0.0002275,2]
[378247837,1754796643087,-460.0,0.0002275,2]
[378247838,1754796643097,-1547.78,0.0002275,2]
[378247839,1754796643107,-460.0,0.0002275,2]
[378247840,1754796643118,-460.0,0.0002275,2]
[378247841,1754796643127,-472.64938104,0.00022757,2]
[378247842,1754796643137,-466.47528646,0.00022757,2]
[378247843,1754796643146,-460.0,0.00022757,2]
[378247844,1754796643157,-228.455,0.00022766,2]
[378247845,1754796643166,-296.258058,0.00022766,7]
[378247846,1754796643175,-296.258058,0.00022766,7]
[378247847,1754796643187,-460.0,0.0002277,2]
[378247848,1754796643196,-306.45314008,0.00022784,2]
[378247849,1754796643207,-156.24501749,0.00022797,2]
[378247850,1754796643216,-8433.74459171,0.00022797,2]
[378247851,1754796643225,-500.0,0.00022829,2]
[378247852,1754796643234,-500.0,0.00022829,2]
[378247853,1754796643243,-500.0,0.00022829,2]
[378247854,1754796643253,-500.0,0.00022829,2]
[378247855,1754796643262,-500.0,0.00022829,2]
[378247856,1754796643272,-500.0,0.00022829,2]
[378247857,1754796643282,-500.0,0.00022829,2]
[378247859,1754796643292,-500.0,0.00022829,2]
[378247860,1754796643301,-500.0,0.00022829,2]
[378247861,1754796643310,-500.0,0.00022829,2]
[378247862,1754796643319,-500.0,0.00022829,2]
[378247863,1754796643329,-500.0,0.00022829,2]
[378247864,1754796643338,-348.38930572,0.00022829,2]
[378247865,1754796643347,-500.0,0.00022829,2]
[378247866,1754796643357,-500.0,0.00022829,2]
[378247867,1754796643366,-500.0,0.00022829,2]
[378247868,1754796643375,-500.0,0.00022829,2]
[378247869,1754796643385,-500.0,0.00022829,2]
[378247870,1754796643394,-500.0,0.00022829,2]
[378247871,1754796643403,-500.0,0.00022829,2]
[378247872,1754796643413,-151.0,0.0002283,2]
[378247873,1754796643422,-154.0500209,0.0002283,2]
[378247874,1754796643431,-152.98665233,0.0002283,2]
[378247875,1754796643441,-204.743127,0.0002283,2]
[378247876,1754796643451,-152.6572038,0.0002283,2]
[378247877,1754796643460,-151.0,0.0002283,2]
[378247878,1754796643469,-227.85842336,0.0002283,2]
[378247879,1754796643479,-151.0,0.00022843,7]
[378247880,1754796643489,-752.414624,0.00022843,7]
[378247881,1754796643498,-752.414624,0.00022843,7]
[378247882,1754796643508,-500.0,0.00022873,2]
[378247883,1754796643517,-502.6104025,0.00022873,2]
[378247884,1754796643528,-151.0,0.00022873,7]
[378247885,1754796643537,-944.04,0.00022887,3]
[378247886,1754796643546,-472.02,0.00022887,3]
[378247887,1754796643556,-236.01,0.00022887,3]
[378247888,1754796643565,-708.03,0.00022887,3]
[378247889,1754796643575,-460.0,0.0002289,2]
[378247890,1754796643585,-460.0,0.0002289,2]
[378247891,1754796643595,-506.08,0.0002289,2]
[378247892,1754796643606,-460.0,0.0002289,2]
[378247893,1754796643616,-460.0,0.0002289,2]
[378247894,1754796643626,-470.6,0.0002289,2]
[378247895,1754796643637,-460.0,0.0002289,2]
[378247896,1754796643647,-460.0,0.0002289,2]
[378247897,1754796643657,-200.0,0.00022896,2]
[378247898,1754796643667,-200.56360519,0.00022896,2]
[378247899,1754796643676,-268.572851,0.00022896,7]
[378247900,1754796643685,-268.572851,0.00022896,7]
[378247901,1754796643696,-151.0,0.00022896,7]
[378247902,1754796643705,-306.88622454,0.00022896,2]
[378247903,1754796643714,-23515.64473404,0.00022897,2]
[378247904,1754796644245,-256.2,0.00022222,2]
[378247905,1754796644943,740.74176381,0.00020697,2]
[378247909,1754796646179,-460.0,0.00021654,2]
[378247910,1754796646190,-460.0,0.00021928,2]
[378247911,1754796646199,-152.58219,0.00022068,7]
[378247912,1754796646208,-203.8,0.00022222,2]
[378247913,1754796646218,-374.82245844,0.00022222,2]
[378247914,1754796646231,-98.25104856,0.00022222,2]
[378247915,1754796646240,-305.41363698,0.00022496,2]
[378247916,1754796646249,-244.58,0.00022756,3]
[378247917,1754796646258,-6729.15559011,0.00022897,2]
[378247918,1754796646270,-429.35548269,0.00022897,2]
[378247919,1754796646283,-7644.33191117,0.00022897,2]
[378247920,1754796646294,-4210.00000001,0.00022897,2]
[378247921,1754796646310,-28966.35386451,0.00022897,2]
[378247922,1754796646324,-17730.14093709,0.00022897,2]
[378247923,1754796646336,-32624.2222,0.00022897,2]
[378247924,1754796646347,-1708.55518027,0.00022897,2]
[378247925,1754796646361,-4054.00800407,0.00022897,2]
[378247926,1754796646372,-300.51875237,0.00022897,2]
[378247927,1754796654077,150.0,0.00025495,30]
[378247928,1754796686470,3147.43202692,0.000199,2]
[378247929,1754796723342,2431.407232,0.00021056,2]
[378247931,1754796741206,166.267328,0.00021004,2]
[378247934,1754796754916,5000.0,0.00019178,2]
[378247935,1754796787757,665.0115327,0.00020818,2]
[378247939,1754796814405,24900.0,0.00020818,2]
[378247940,1754796814689,666.0,0.00020818,2]
[378247946,1754796845162,5000.0,0.0002109,2]
[378247950,1754796861727,5000.0,0.0002109,2]
[378247953,1754796877195,1227.28391961,0.0002109,2]
[378247957,1754796889598,3042.42773244,0.000199,2]
[378247969,1754796946318,493.82784254,0.00020797,2]
[378247973,1754796970731,6685.73,0.000199,2]
[378247987,1754797069096,6321.48182447,0.000199,2]
[378247988,1754797071978,254.818856,0.00020726,2]
[378247990,1754797137922,10000.0,0.00020701,2]
[378247991,1754797247062,6110.76576378,0.000199,2]
[378247992,1754797247642,329.21856169,0.00020797,2]
[378247995,1754797252382,307.202583,0.00013699,2]
[378247996,1754797252598,307.202583,0.00020187,2]
[378248001,1754797425263,5907.07357148,0.000199,2]
[378248025,1754797548915,219.47904113,0.0001899,2]
[378248028,1754797609048,5710.17111931,0.000199,2]
[378248029,1754797640490,176.7634433,0.00020729,2]
[378248032,1754797703231,244.9291761,0.00020564,2]
[378248035,1754797746956,24900.0,0.00020605,2]
[378248036,1754797755432,666.0,0.00020584,2]
[378248037,1754797770788,1215.703616,0.00020584,2]
[378248039,1754797793495,5519.83208199,0.000199,2]
[378248079,1754797832422,-5000.0,0.00021164,2]
[378248082,1754797832431,-1200.0,0.00021509,2]
[378248085,1754797832441,-185.0,0.0002151,2]
[378248088,1754797832450,-300.0,0.0002151,2]
[378248091,1754797832460,-300.0,0.0002151,2]
[378248094,1754797832469,-300.0,0.0002151,2]
[378248097,1754797832479,-300.0,0.0002151,2]
[378248099,1754797832488,-512.76073651,0.00021511,2]
[378248101,1754797832498,-460.0,0.00021511,2]
[378248103,1754797832507,-450.0,0.00021511,2]
[378248106,1754797832516,-460.0,0.00021512,2]
[378248108,1754797832525,-460.0,0.00021512,2]
[378248110,1754797832534,-460.0,0.00021512,2]
[378248112,1754797832544,-460.0,0.00021512,2]
[378248115,1754797832553,-467.42984223,0.00021512,2]
[378248118,1754797832562,-460.0,0.00021512,2]
[378248121,1754797832572,-460.0,0.00021512,2]
[378248124,1754797832582,-467.86956144,0.00021512,2]
[378248126,1754797832591,-496.47907655,0.00021512,2]
[378248128,1754797832600,-783.73,0.00021512,2]
[378248130,1754797832613,-460.0,0.00021512,2]
[378248133,1754797832622,-460.0,0.00021512,2]
[378248136,1754797832631,-460.0,0.00021512,2]
[378248139,1754797832641,-470.51745111,0.00021512,2]
[378248142,1754797832651,-479.09256158,0.00021512,2]
[378248145,1754797832660,-1545.89,0.00021512,2]
[378248147,1754797832669,-904.25,0.00021512,2]
[378248149,1754797832679,-460.0,0.00021512,2]
[378248151,1754797832689,-460.0,0.00021512,2]
[378248153,1754797832699,-460.0,0.00021512,2]
[378248155,1754797832708,-460.0,0.00021512,2]
[378248157,1754797832717,-460.0,0.00021512,2]
[378248159,1754797832727,-460.0,0.00021512,2]
[378248161,1754797832736,-460.0,0.00021512,2]
[378248163,1754797832745,-460.0,0.00021512,2]
[378248165,1754797832755,-460.0,0.00021512,2]
[378248167,1754797832764,-477.08553529,0.00021512,2]
[378248169,1754797832773,-460.0,0.00021512,2]
[378248171,1754797832782,-467.70762034,0.00021512,2]
[378248173,1754797832792,-475.03139188,0.00021512,2]
[378248175,1754797832801,-460.0,0.00021512,2]
[378248176,1754797832811,-550.04,0.00021512,2]
[378248178,1754797832820,-460.0,0.00021512,2]
[378248181,1754797832831,-891.45,0.00021512,2]
[378248183,1754797832840,-460.0,0.00021512,2]
[378248185,1754797832849,-466.82811359,0.00021551,2]
[378248187,1754797832859,-467.40617583,0.00021551,2]
[378248189,1754797832868,-460.0,0.00021551,2]
[378248191,1754797832877,-460.0,0.00021551,2]
[378248193,1754797832886,-460.0,0.00021551,2]
[378248195,1754797832895,-460.0,0.00021551,2]
[378248197,1754797832905,-477.78,0.00021551,2]
[378248199,1754797832914,-467.40026528,0.00021551,2]
[378248200,1754797832923,-460.0,0.00021551,2]
[378248203,1754797832933,-460.0,0.00021551,2]
[378248204,1754797832942,-1.35893047,0.00021552,2]
[378248207,1754797832954,-299.6576386,0.00021552,2]
[378248211,1754797832982,-162.51870489,0.00021552,2]
[378248213,1754797832991,-473.41755438,0.00021552,2]
[378248215,1754797833000,-460.0,0.00021552,2]
[378248217,1754797833009,-460.0,0.00021552,2]
[378248219,1754797833019,-460.0,0.00021552,2]
[378248221,1754797833028,-1010.69,0.00021552,2]
[378248223,1754797833037,-460.0,0.00021552,2]
[378248225,1754797833047,-222.75281853,0.00021552,2]
[378248227,1754797833060,-237.24718147,0.00021552,2]
[378248229,1754797833070,-557.19,0.00021552,2]
[378248231,1754797833079,-71.00768981,0.00021554,2]
[378248233,1754797834336,159.17,0.0002059,3]
[378248262,1754797838288,-1086.8586102,0.00021554,2]
[378248264,1754797838298,-305.74587259,0.00021615,2]
[378248266,1754797838307,-264.16704948,0.00021653,2]
[378248268,1754797838317,-184.15625308,0.00021653,2]
[378248270,1754797838326,-460.0,0.00021654,2]
[378248272,1754797838336,-460.0,0.00021654,2]
[378248274,1754797838345,-460.0,0.00021654,2]
[378248276,1754797838355,-460.0,0.00021654,2]
[378248278,1754797838364,-544.20669376,0.00021654,2]